[Event "Early-Titled-Tuesday-Blitz-September-12-2023"]
[Site "Chess.com"]
[Date "2023.09.12"]
[Round "1"]
[White "Bigfish1995"]
[Black "Lion-Al-Messi"]
[Result "0-1"]
[WhiteElo "3062"]
[BlackElo "2550"]
[TimeControl "180+1"]
[EndTime "8:09:36 PDT"]
[Termination "Lion-Al-Messi won on time"]

1. h3 {[%clk 0:02:58.1]} 1... d5 {[%clk 0:02:59.9]} 2. Nf3 {[%clk 0:02:57.7]}
2... c5 {[%clk 0:03:00.8]} 3. Nh2 {[%clk 0:02:58.1]} 3... Nc6 {[%clk 0:03:01.2]}
4. Nf3 {[%clk 0:02:59]} 4... e5 {[%clk 0:03:00.4]} 5. Ng1 {[%clk 0:02:59.9]}
5... e4 {[%clk 0:03:00.7]} 6. d3 {[%clk 0:02:59.6]} 6... f5 {[%clk 0:03:00.6]}
7. Bf4 {[%clk 0:02:53.3]} 7... Nf6 {[%clk 0:03:00.3]} 8. e3 {[%clk 0:02:52.3]}
8... d4 {[%clk 0:02:54.2]} 9. dxe4 {[%clk 0:02:50.5]} 9... fxe4 {[%clk
0:02:52.8]} 10. Bc4 {[%clk 0:02:50.1]} 10... Bf5 {[%clk 0:02:46]} 11. Nd2 {[%clk
0:02:44.4]} 11... Nd5 {[%clk 0:02:44.4]} 12. Ne2 {[%clk 0:02:38.1]} 12... dxe3
{[%clk 0:02:40.8]} 13. fxe3 {[%clk 0:02:29.1]} 13... Nxf4 {[%clk 0:02:39.4]} 14.
exf4 {[%clk 0:02:05.8]} 14... e3 {[%clk 0:02:23.8]} 15. Nf1 {[%clk 0:02:03]}
15... Qe7 {[%clk 0:02:05]} 16. Neg3 {[%clk 0:01:52.8]} 16... Rd8 {[%clk
0:01:56.5]} 17. Nxf5 {[%clk 0:01:34.6]} 17... Rxd1+ {[%clk 0:01:55.8]} 18. Rxd1
{[%clk 0:01:35.5]} 18... Qf6 {[%clk 0:01:54.5]} 19. N5xe3 {[%clk 0:01:04.6]}
19... Qxf4 {[%clk 0:01:52.7]} 20. c3 {[%clk 0:00:59.6]} 20... Be7 {[%clk
0:01:50.3]} 21. Rd2 {[%clk 0:00:57.6]} 21... Bh4+ {[%clk 0:01:50]} 22. Kd1
{[%clk 0:00:56.6]} 22... Rf8 {[%clk 0:01:48.3]} 23. Kc2 {[%clk 0:00:55.4]} 23...
Ne5 {[%clk 0:01:45.4]} 24. Bd5 {[%clk 0:00:45.8]} 24... Bf2 {[%clk 0:01:40.5]}
25. Re2 {[%clk 0:00:45.1]} 25... Kd7 {[%clk 0:01:36.3]} 26. b3 {[%clk
0:00:39.6]} 26... Kc7 {[%clk 0:01:34.3]} 27. Bf3 {[%clk 0:00:33.4]} 27... Bxe3
{[%clk 0:01:34.3]} 28. Nxe3 {[%clk 0:00:33.6]} 28... Kb8 {[%clk 0:01:34.5]} 29.
Nd5 {[%clk 0:00:32.4]} 29... Qf5+ {[%clk 0:01:31.8]} 30. Be4 {[%clk 0:00:32.4]}
30... Qh5 {[%clk 0:01:32.1]} 31. Rhe1 {[%clk 0:00:32.3]} 31... c4 {[%clk
0:01:25.8]} 32. Ne3 {[%clk 0:00:27.3]} 32... Nd3 {[%clk 0:01:18.7]} 33. Bxd3
{[%clk 0:00:27.1]} 33... cxd3+ {[%clk 0:01:19.6]} 34. Kxd3 {[%clk 0:00:27.7]}
34... Qg6+ {[%clk 0:01:16.9]} 35. Kd2 {[%clk 0:00:28.3]} 35... Rd8+ {[%clk
0:01:17]} 36. Kc1 {[%clk 0:00:28.9]} 36... Qd3 {[%clk 0:01:15.4]} 37. Nd1 {[%clk
0:00:28.3]} 37... a5 {[%clk 0:01:09.8]} 38. Rc2 {[%clk 0:00:28.3]} 38... a4
{[%clk 0:01:08]} 39. bxa4 {[%clk 0:00:26.4]} 39... Qd6 {[%clk 0:01:06.6]} 40.
Nb2 {[%clk 0:00:23.8]} 40... Qa3 {[%clk 0:01:05.9]} 41. Kb1 {[%clk 0:00:24.4]}
41... Rd6 {[%clk 0:01:04.1]} 42. Nc4 {[%clk 0:00:23.6]} 42... Qc5 {[%clk
0:00:53.4]} 43. Nxd6 {[%clk 0:00:23.4]} 43... Qxd6 {[%clk 0:00:54.3]} 44. Re4
{[%clk 0:00:22.6]} 44... Qc6 {[%clk 0:00:54.1]} 45. Rb4 {[%clk 0:00:22]} 45...
Ka7 {[%clk 0:00:52.9]} 46. Kb2 {[%clk 0:00:21.1]} 46... h5 {[%clk 0:00:51]} 47.
Rd2 {[%clk 0:00:20.9]} 47... g5 {[%clk 0:00:50.6]} 48. h4 {[%clk 0:00:20]} 48...
g4 {[%clk 0:00:50.5]} 49. Re2 {[%clk 0:00:18.8]} 49... g3 {[%clk 0:00:50.3]} 50.
Rd2 {[%clk 0:00:16.6]} 50... Qf6 {[%clk 0:00:46.8]} 51. Rbd4 {[%clk 0:00:13.4]}
51... Qf5 {[%clk 0:00:39.9]} 52. Kc1 {[%clk 0:00:12.7]} 52... Qf1+ {[%clk
0:00:39.9]} 53. Kc2 {[%clk 0:00:13.6]} 53... Qf5+ {[%clk 0:00:40]} 54. Kd1
{[%clk 0:00:14.1]} 54... Qf1+ {[%clk 0:00:40.1]} 55. Kc2 {[%clk 0:00:14.5]}
55... Qf5+ {[%clk 0:00:40.1]} 56. Kb3 {[%clk 0:00:15.2]} 56... Qb1+ {[%clk
0:00:40]} 57. Kc4 {[%clk 0:00:15.2]} 57... Qf1+ {[%clk 0:00:38.5]} 58. Kb4
{[%clk 0:00:14.6]} 58... Qb1+ {[%clk 0:00:38.4]} 59. Kc5 {[%clk 0:00:14.6]}
59... Qf5+ {[%clk 0:00:37.4]} 60. Rd5 {[%clk 0:00:13.2]} 60... Qf4 {[%clk
0:00:38]} 61. R5d4 {[%clk 0:00:13.1]} 61... Qc7+ {[%clk 0:00:37.7]} 62. Kb4
{[%clk 0:00:12.6]} 62... Qe5 {[%clk 0:00:37.3]} 63. a5 {[%clk 0:00:10.1]} 63...
Qe7+ {[%clk 0:00:36.3]} 64. Kc4 {[%clk 0:00:10.3]} 64... Qe6+ {[%clk 0:00:36.6]}
65. Kd3 {[%clk 0:00:09.7]} 65... Qf5+ {[%clk 0:00:37]} 66. Ke3 {[%clk
0:00:10.1]} 66... Qxa5 {[%clk 0:00:37.5]} 67. Kf3 {[%clk 0:00:08.6]} 67... Qxc3+
{[%clk 0:00:38]} 68. R2d3 {[%clk 0:00:08.6]} 68... Qc7 {[%clk 0:00:36.5]} 69.
Ra4+ {[%clk 0:00:07]} 69... Kb8 {[%clk 0:00:35.8]} 70. Rf4 {[%clk 0:00:07.6]}
70... Qc2 {[%clk 0:00:34]} 71. Rf8+ {[%clk 0:00:03.4]} 71... Ka7 {[%clk
0:00:34.4]} 72. Ra3+ {[%clk 0:00:02.8]} 72... Kb6 {[%clk 0:00:35]} 73. Rb3+
{[%clk 0:00:03.7]} 73... Ka7 {[%clk 0:00:35.4]} 74. Rf7 {[%clk 0:00:03.6]} 74...
Qc6+ {[%clk 0:00:33.2]} 75. Ke3 {[%clk 0:00:03.9]} 75... Qe6+ {[%clk 0:00:33]}
76. Kf3 {[%clk 0:00:04.4]} 76... Qxf7+ {[%clk 0:00:33.6]} 77. Kxg3 {[%clk
0:00:05.3]} 77... Qg6+ {[%clk 0:00:33.7]} 78. Kh2 {[%clk 0:00:06.2]} 78... Qg4
{[%clk 0:00:34.1]} 79. Ra3+ {[%clk 0:00:06.4]} 79... Kb8 {[%clk 0:00:33.7]} 80.
Rh3 {[%clk 0:00:06]} 80... Qa4 {[%clk 0:00:33.1]} 81. a3 {[%clk 0:00:05.5]}
81... Qc4 {[%clk 0:00:32.4]} 82. Kh1 {[%clk 0:00:06.4]} 82... Qf1+ {[%clk
0:00:32.1]} 83. Kh2 {[%clk 0:00:07.3]} 83... Qf4+ {[%clk 0:00:32.7]} 84. Kh1
{[%clk 0:00:08.1]} 84... Qc1+ {[%clk 0:00:33.1]} 85. Kh2 {[%clk 0:00:08]} 85...
b5 {[%clk 0:00:33.7]} 86. Rb3 {[%clk 0:00:07.3]} 86... Qc7+ {[%clk 0:00:34.2]}
87. Kh1 {[%clk 0:00:07.6]} 87... Qc4 {[%clk 0:00:34.6]} 88. Rh3 {[%clk
0:00:06.5]} 88... Kb7 {[%clk 0:00:32.2]} 89. Kg1 {[%clk 0:00:07.4]} 89... Ka6
{[%clk 0:00:32.5]} 90. Kf2 {[%clk 0:00:06.9]} 90... Ka5 {[%clk 0:00:32.9]} 91.
Kg1 {[%clk 0:00:07.4]} 91... Qa2 {[%clk 0:00:32.9]} 92. Rf3 {[%clk 0:00:06.6]}
92... Ka4 {[%clk 0:00:32.9]} 93. Kh2 {[%clk 0:00:06.7]} 93... Qc4 {[%clk
0:00:30.5]} 94. Rh3 {[%clk 0:00:05.1]} 94... Qd4 {[%clk 0:00:28.2]} 95. Kh1
{[%clk 0:00:03.4]} 95... Qd1+ {[%clk 0:00:24.1]} 96. Kh2 {[%clk 0:00:03.6]}
96... Qd6+ {[%clk 0:00:25]} 97. Kh1 {[%clk 0:00:03.9]} 97... Qxa3 {[%clk
0:00:25.2]} 98. Rxa3+ {[%clk 0:00:03.8]} 98... Kxa3 {[%clk 0:00:26.1]} 99. g4
{[%clk 0:00:04.1]} 99... b4 {[%clk 0:00:26.4]} 100. gxh5 {[%clk 0:00:01.1]}
100... b3 {[%clk 0:00:27]} 101. h6 {[%clk 0:00:02]} 101... b2 {[%clk 0:00:27.7]}
102. h7 {[%clk 0:00:02.9]} 102... b1=Q+ {[%clk 0:00:28.1]} 0-1

[Event "Early-Titled-Tuesday-Blitz-September-12-2023"]
[Site "Chess.com"]
[Date "2023.09.12"]
[Round "2"]
[White "Doomfist26"]
[Black "FabianoCaruana"]
[Result "0-1"]
[WhiteElo "2642"]
[BlackElo "3064"]
[TimeControl "180+1"]
[EndTime "8:13:59 PDT"]
[Termination "FabianoCaruana won by resignation"]

1. e4 {[%clk 0:03:00.9]} 1... e5 {[%clk 0:02:59.4]} 2. Nf3 {[%clk 0:03:00.5]}
2... Nc6 {[%clk 0:03:00.1]} 3. Bc4 {[%clk 0:02:59.1]} 3... Nf6 {[%clk 0:03:00]}
4. d3 {[%clk 0:02:54.3]} 4... Be7 {[%clk 0:02:59.4]} 5. c3 {[%clk 0:02:46.9]}
5... O-O {[%clk 0:02:59.5]} 6. O-O {[%clk 0:02:46.9]} 6... d5 {[%clk 0:02:59.6]}
7. exd5 {[%clk 0:02:46.4]} 7... Nxd5 {[%clk 0:03:00.5]} 8. Re1 {[%clk
0:02:37.5]} 8... Bg4 {[%clk 0:03:00.4]} 9. Nbd2 {[%clk 0:02:37.5]} 9... Nb6
{[%clk 0:02:52.7]} 10. Qe2 {[%clk 0:02:30.2]} 10... Nxc4 {[%clk 0:02:50.3]} 11.
Nxc4 {[%clk 0:02:30.5]} 11... f6 {[%clk 0:02:47.3]} 12. b4 {[%clk 0:02:05.6]}
12... a6 {[%clk 0:02:45.6]} 13. a4 {[%clk 0:02:04.6]} 13... Re8 {[%clk
0:02:40.5]} 14. Rb1 {[%clk 0:02:02.4]} 14... Bf8 {[%clk 0:02:29.4]} 15. b5
{[%clk 0:01:53.3]} 15... axb5 {[%clk 0:02:30.3]} 16. axb5 {[%clk 0:01:53.5]}
16... Ne7 {[%clk 0:02:29.8]} 17. Ne3 {[%clk 0:01:42.7]} 17... Bh5 {[%clk
0:02:29.6]} 18. d4 {[%clk 0:01:38.6]} 18... e4 {[%clk 0:02:24.9]} 0-1

[Event "Early-Titled-Tuesday-Blitz-September-12-2023"]
[Site "Chess.com"]
[Date "2023.09.12"]
[Round "2"]
[White "Cayse"]
[Black "Bastiandash"]
[Result "1-0"]
[WhiteElo "2862"]
[BlackElo "2562"]
[TimeControl "180+1"]
[EndTime "8:14:09 PDT"]
[Termination "Cayse won by resignation"]

1. e4 {[%clk 0:03:00.9]} 1... c5 {[%clk 0:02:58.1]} 2. Nf3 {[%clk 0:03:00.3]}
2... e6 {[%clk 0:02:58.7]} 3. d4 {[%clk 0:02:59.7]} 3... cxd4 {[%clk 0:02:59.6]}
4. Nxd4 {[%clk 0:03:00]} 4... a6 {[%clk 0:02:58.8]} 5. Be2 {[%clk 0:03:00]} 5...
Nf6 {[%clk 0:02:56.9]} 6. Nc3 {[%clk 0:02:59]} 6... Qc7 {[%clk 0:02:57.4]} 7.
O-O {[%clk 0:02:58]} 7... b5 {[%clk 0:02:57.8]} 8. e5 {[%clk 0:02:56.6]} 8... b4
{[%clk 0:02:50.5]} 9. exf6 {[%clk 0:02:53.3]} 9... bxc3 {[%clk 0:02:50.1]} 10.
Bf3 {[%clk 0:02:53.5]} 10... d5 {[%clk 0:01:54.6]} 11. Re1 {[%clk 0:02:40.9]}
11... Bb7 {[%clk 0:01:48]} 12. Nxe6 {[%clk 0:02:31.1]} 12... fxe6 {[%clk
0:01:48.9]} 13. Rxe6+ {[%clk 0:02:31.1]} 13... Kd8 {[%clk 0:01:11.9]} 14. Bg5
{[%clk 0:02:29.2]} 14... Kc8 {[%clk 0:00:59.7]} 15. Bg4 {[%clk 0:02:27.3]} 1-0

[Event "Early-Titled-Tuesday-Blitz-September-12-2023"]
[Site "Chess.com"]
[Date "2023.09.12"]
[Round "2"]
[White "Abund"]
[Black "brunoo2003"]
[Result "1-0"]
[WhiteElo "2752"]
[BlackElo "2463"]
[TimeControl "180+1"]
[EndTime "8:14:13 PDT"]
[Termination "Abund won by resignation"]

1. e4 {[%clk 0:03:00.9]} 1... c5 {[%clk 0:02:53.3]} 2. Nf3 {[%clk 0:03:01]} 2...
Nc6 {[%clk 0:02:52.7]} 3. Bb5 {[%clk 0:02:59.9]} 3... e6 {[%clk 0:02:51.3]} 4.
O-O {[%clk 0:03:00.1]} 4... Nge7 {[%clk 0:02:51.4]} 5. Re1 {[%clk 0:03:00.6]}
5... g6 {[%clk 0:02:50.3]} 6. c3 {[%clk 0:02:56]} 6... Bg7 {[%clk 0:02:48.6]} 7.
d4 {[%clk 0:02:56.4]} 7... cxd4 {[%clk 0:02:49.5]} 8. cxd4 {[%clk 0:02:57.3]}
8... d5 {[%clk 0:02:49.6]} 9. e5 {[%clk 0:02:55.3]} 9... a6 {[%clk 0:02:46.6]}
10. Bxc6+ {[%clk 0:02:45.4]} 10... Nxc6 {[%clk 0:02:46]} 11. Nc3 {[%clk
0:02:40.6]} 11... O-O {[%clk 0:02:42]} 12. Bg5 {[%clk 0:02:37.2]} 12... Qb6
{[%clk 0:02:17.1]} 13. Qd2 {[%clk 0:02:34.8]} 13... Bd7 {[%clk 0:02:15.5]} 14.
Na4 {[%clk 0:02:27.7]} 14... Qb4 {[%clk 0:02:03]} 15. Qxb4 {[%clk 0:02:22.8]}
15... Nxb4 {[%clk 0:02:03.4]} 16. Nb6 {[%clk 0:02:23.5]} 16... Bc6 {[%clk
0:01:48.2]} 17. Nxa8 {[%clk 0:02:23.9]} 17... Nc2 {[%clk 0:01:48]} 18. Nb6
{[%clk 0:02:22.3]} 18... h6 {[%clk 0:01:42.9]} 19. Bd2 {[%clk 0:02:10.2]} 19...
g5 {[%clk 0:01:40.9]} 20. h3 {[%clk 0:02:09.6]} 20... f6 {[%clk 0:01:37]} 21.
Rac1 {[%clk 0:02:04.5]} 21... Nxe1 {[%clk 0:01:35.4]} 22. Rxe1 {[%clk
0:02:05.4]} 22... fxe5 {[%clk 0:01:35.8]} 23. Nxe5 {[%clk 0:02:04.8]} 1-0

[Event "Early-Titled-Tuesday-Blitz-September-12-2023"]
[Site "Chess.com"]
[Date "2023.09.12"]
[Round "2"]
[White "Fandorine"]
[Black "Young_Catalan_Player09"]
[Result "1-0"]
[WhiteElo "2919"]
[BlackElo "2431"]
[TimeControl "180+1"]
[EndTime "8:14:26 PDT"]
[Termination "Fandorine won by resignation"]

1. d4 {[%clk 0:03:00.9]} 1... d5 {[%clk 0:02:59.6]} 2. Nf3 {[%clk 0:03:00.9]}
2... Nf6 {[%clk 0:02:59.4]} 3. c4 {[%clk 0:03:01.5]} 3... c6 {[%clk 0:02:59.7]}
4. g3 {[%clk 0:03:01.3]} 4... e6 {[%clk 0:02:58.7]} 5. Bg2 {[%clk 0:03:01.7]}
5... dxc4 {[%clk 0:02:58.9]} 6. O-O {[%clk 0:03:00]} 6... b5 {[%clk 0:02:57.7]}
7. Ne5 {[%clk 0:02:59.7]} 7... Bb7 {[%clk 0:02:56.4]} 8. b3 {[%clk 0:03:00.1]}
8... cxb3 {[%clk 0:02:55.8]} 9. Qxb3 {[%clk 0:03:00.3]} 9... Be7 {[%clk
0:02:51.7]} 10. Bb2 {[%clk 0:03:00.7]} 10... O-O {[%clk 0:02:47.9]} 11. Rc1
{[%clk 0:03:01.3]} 11... a6 {[%clk 0:02:44.4]} 12. Nd2 {[%clk 0:03:00.5]} 12...
Nfd7 {[%clk 0:02:28.6]} 13. Nd3 {[%clk 0:02:45.6]} 13... Qb6 {[%clk 0:02:20.5]}
14. a4 {[%clk 0:02:37.9]} 14... bxa4 {[%clk 0:01:54.6]} 15. Qxa4 {[%clk
0:02:30.8]} 15... c5 {[%clk 0:01:42.8]} 16. dxc5 {[%clk 0:02:13.9]} 16... Nxc5
{[%clk 0:01:42.8]} 17. Qd4 {[%clk 0:01:46.7]} 17... e5 {[%clk 0:01:35.1]} 18.
Qxe5 {[%clk 0:01:45.4]} 1-0

[Event "Early-Titled-Tuesday-Blitz-September-12-2023"]
[Site "Chess.com"]
[Date "2023.09.12"]
[Round "2"]
[White "lluiss"]
[Black "WindWhistler11"]
[Result "0-1"]
[WhiteElo "2163"]
[BlackElo "2476"]
[TimeControl "180+1"]
[EndTime "8:14:33 PDT"]
[Termination "WindWhistler11 won by resignation"]

1. Nf3 {[%clk 0:03:00.9]} 1... d6 {[%clk 0:02:55.8]} 2. d4 {[%clk 0:03:00.3]}
2... g6 {[%clk 0:02:56]} 3. g3 {[%clk 0:03:00.4]} 3... Bg7 {[%clk 0:02:56.7]} 4.
Bg2 {[%clk 0:03:01]} 4... Nd7 {[%clk 0:02:57.3]} 5. O-O {[%clk 0:03:00.6]} 5...
e5 {[%clk 0:02:58]} 6. c4 {[%clk 0:02:58.3]} 6... Ne7 {[%clk 0:02:58.2]} 7. Nc3
{[%clk 0:02:58]} 7... O-O {[%clk 0:02:58.5]} 8. h3 {[%clk 0:02:58]} 8... a6
{[%clk 0:02:55.8]} 9. e4 {[%clk 0:02:53.9]} 9... Rb8 {[%clk 0:02:56]} 10. b4
{[%clk 0:02:49]} 10... b5 {[%clk 0:02:47.5]} 11. cxb5 {[%clk 0:02:48.7]} 11...
axb5 {[%clk 0:02:47.4]} 12. dxe5 {[%clk 0:02:21.5]} 12... Nxe5 {[%clk
0:02:42.7]} 13. Nxe5 {[%clk 0:02:18.5]} 13... Bxe5 {[%clk 0:02:34.5]} 14. Qc2
{[%clk 0:02:05.8]} 14... Nc6 {[%clk 0:02:26.5]} 15. a3 {[%clk 0:01:59.3]} 15...
Be6 {[%clk 0:02:15.5]} 16. Bb2 {[%clk 0:01:52]} 16... Nd4 {[%clk 0:02:12.5]} 17.
Qd1 {[%clk 0:01:41.6]} 17... Bb3 {[%clk 0:02:06.2]} 18. Qd2 {[%clk 0:01:40.1]}
18... Bc4 {[%clk 0:02:05.2]} 19. Rad1 {[%clk 0:01:26.1]} 19... Bxf1 {[%clk
0:01:48]} 20. Bxf1 {[%clk 0:01:27]} 20... Nf3+ {[%clk 0:01:47.6]} 0-1

[Event "Early-Titled-Tuesday-Blitz-September-12-2023"]
[Site "Chess.com"]
[Date "2023.09.12"]
[Round "2"]
[White "rikchessmx"]
[Black "Tejas_Rama"]
[Result "0-1"]
[WhiteElo "2289"]
[BlackElo "2514"]
[TimeControl "180+1"]
[EndTime "8:14:50 PDT"]
[Termination "Tejas_Rama won on time"]

1. e4 {[%clk 0:02:25.2]} 1... c5 {[%clk 0:02:59.3]} 2. Nf3 {[%clk 0:02:21.9]}
2... d6 {[%clk 0:02:59.7]} 3. d4 {[%clk 0:02:19.6]} 3... cxd4 {[%clk 0:03:00.6]}
4. Nxd4 {[%clk 0:02:19.8]} 4... Nf6 {[%clk 0:03:01.2]} 5. Nc3 {[%clk 0:02:20]}
5... Nc6 {[%clk 0:03:01.7]} 6. Nb3 {[%clk 0:02:18.5]} 6... g6 {[%clk 0:03:00.8]}
7. f4 {[%clk 0:02:19.4]} 7... Bg7 {[%clk 0:03:00.3]} 8. Qf3 {[%clk 0:02:20.2]}
8... O-O {[%clk 0:02:59.6]} 9. h3 {[%clk 0:02:20.3]} 9... Be6 {[%clk 0:02:46.7]}
10. Be3 {[%clk 0:02:21.2]} 10... d5 {[%clk 0:02:37.6]} 11. g4 {[%clk 0:02:22.1]}
11... dxe4 {[%clk 0:02:32.3]} 12. Nxe4 {[%clk 0:02:20.1]} 12... Nxe4 {[%clk
0:02:32.2]} 0-1

[Event "Early-Titled-Tuesday-Blitz-September-12-2023"]
[Site "Chess.com"]
[Date "2023.09.12"]
[Round "2"]
[White "BahadirOzen"]
[Black "santosalberto1987"]
[Result "1-0"]
[WhiteElo "2812"]
[BlackElo "2547"]
[TimeControl "180+1"]
[EndTime "8:15:06 PDT"]
[Termination "BahadirOzen won by resignation"]

1. g3 {[%clk 0:03:00.9]} 1... d5 {[%clk 0:02:59.5]} 2. Nf3 {[%clk 0:03:00.8]}
2... Nf6 {[%clk 0:02:59.2]} 3. Bg2 {[%clk 0:03:01.2]} 3... c6 {[%clk 0:02:58.6]}
4. O-O {[%clk 0:03:01.2]} 4... Bf5 {[%clk 0:02:57.2]} 5. d3 {[%clk 0:03:01.1]}
5... h6 {[%clk 0:02:56.8]} 6. c4 {[%clk 0:03:01.5]} 6... Nbd7 {[%clk 0:02:53.9]}
7. cxd5 {[%clk 0:02:54.5]} 7... cxd5 {[%clk 0:02:53.8]} 8. Nc3 {[%clk
0:02:38.4]} 8... e6 {[%clk 0:02:53.7]} 9. e4 {[%clk 0:02:16.4]} 9... dxe4 {[%clk
0:02:29.3]} 10. dxe4 {[%clk 0:02:17.3]} 10... Nxe4 {[%clk 0:02:29.3]} 11. Nd4
{[%clk 0:02:17.4]} 11... Nxc3 {[%clk 0:02:15.7]} 12. bxc3 {[%clk 0:02:18.3]}
12... Qc7 {[%clk 0:00:45.6]} 13. Nxf5 {[%clk 0:02:12.1]} 13... exf5 {[%clk
0:00:46.5]} 14. Re1+ {[%clk 0:02:12.3]} 14... Be7 {[%clk 0:00:46.4]} 15. Bf4
{[%clk 0:02:07.9]} 1-0

[Event "Early-Titled-Tuesday-Blitz-September-12-2023"]
[Site "Chess.com"]
[Date "2023.09.12"]
[Round "2"]
[White "AlexPapasimakopoulos"]
[Black "Payyappat"]
[Result "1-0"]
[WhiteElo "2761"]
[BlackElo "2485"]
[TimeControl "180+1"]
[EndTime "8:15:09 PDT"]
[Termination "AlexPapasimakopoulos won by resignation"]

1. d4 {[%clk 0:03:00.9]} 1... Nf6 {[%clk 0:02:56.4]} 2. c4 {[%clk 0:03:01.4]}
2... c5 {[%clk 0:02:55.2]} 3. d5 {[%clk 0:03:01.4]} 3... e6 {[%clk 0:02:55.7]}
4. Nc3 {[%clk 0:03:01.1]} 4... exd5 {[%clk 0:02:55.4]} 5. cxd5 {[%clk 0:03:02]}
5... d6 {[%clk 0:02:54.9]} 6. Nf3 {[%clk 0:03:02.7]} 6... g6 {[%clk 0:02:55.4]}
7. Bf4 {[%clk 0:03:03.2]} 7... Bg7 {[%clk 0:02:56.3]} 8. Qa4+ {[%clk 0:03:03.4]}
8... Bd7 {[%clk 0:02:55.9]} 9. Qb3 {[%clk 0:03:03.9]} 9... b5 {[%clk 0:02:55.1]}
10. Bxd6 {[%clk 0:03:04.5]} 10... Qb6 {[%clk 0:02:51.2]} 11. Be5 {[%clk
0:03:05]} 11... O-O {[%clk 0:02:48.6]} 12. e3 {[%clk 0:03:04.4]} 12... c4 {[%clk
0:02:47.1]} 13. Qd1 {[%clk 0:03:04.3]} 13... b4 {[%clk 0:02:42.6]} 14. Nb1
{[%clk 0:03:04.1]} 14... Rc8 {[%clk 0:02:40.8]} 15. Nbd2 {[%clk 0:02:55.8]}
15... Bb5 {[%clk 0:02:36.8]} 16. a4 {[%clk 0:02:54.9]} 16... Ba6 {[%clk
0:02:32.1]} 17. Rc1 {[%clk 0:02:50.1]} 17... Nxd5 {[%clk 0:01:46.7]} 18. Bxg7
{[%clk 0:02:35.1]} 18... Kxg7 {[%clk 0:01:46]} 19. Nxc4 {[%clk 0:02:34.1]} 19...
Qe6 {[%clk 0:01:42]} 20. Qd4+ {[%clk 0:02:30.1]} 20... Kg8 {[%clk 0:01:38.4]}
21. Ng5 {[%clk 0:02:14.8]} 21... Qf5 {[%clk 0:01:26.4]} 22. Ne4 {[%clk
0:02:14.8]} 22... Rd8 {[%clk 0:01:02.9]} 23. Ncd6 {[%clk 0:02:14.4]} 23... Qe6
{[%clk 0:00:58.1]} 24. Qxd5 {[%clk 0:02:07.6]} 24... Qxd5 {[%clk 0:00:59]} 25.
Nf6+ {[%clk 0:02:07.6]} 25... Kg7 {[%clk 0:00:59.5]} 26. Nxd5 {[%clk 0:02:07.1]}
1-0

[Event "Early-Titled-Tuesday-Blitz-September-12-2023"]
[Site "Chess.com"]
[Date "2023.09.12"]
[Round "2"]
[White "nss13"]
[Black "FeketeBarika"]
[Result "0-1"]
[WhiteElo "2555"]
[BlackElo "2403"]
[TimeControl "180+1"]
[EndTime "8:15:44 PDT"]
[Termination "FeketeBarika won by resignation"]

1. e4 {[%clk 0:03:00]} 1... e6 {[%clk 0:02:45]} 2. d4 {[%clk 0:02:59.5]} 2... d5
{[%clk 0:02:45.9]} 3. Nd2 {[%clk 0:03:00]} 3... Be7 {[%clk 0:02:45.4]} 4. e5
{[%clk 0:02:59.5]} 4... c5 {[%clk 0:02:41.2]} 5. c3 {[%clk 0:03:00.1]} 5... Nc6
{[%clk 0:02:35.1]} 6. Bd3 {[%clk 0:02:59.7]} 6... Qb6 {[%clk 0:02:34.9]} 7. Ndf3
{[%clk 0:02:42.5]} 7... Bd7 {[%clk 0:02:26.7]} 8. Ne2 {[%clk 0:02:41]} 8... Rc8
{[%clk 0:02:22.1]} 9. O-O {[%clk 0:02:33.2]} 9... cxd4 {[%clk 0:02:12.5]} 10.
Nexd4 {[%clk 0:02:24.1]} 10... Nxd4 {[%clk 0:02:07.6]} 11. cxd4 {[%clk
0:02:22.6]} 11... Bb5 {[%clk 0:02:06.5]} 12. a3 {[%clk 0:02:15.7]} 12... Bxd3
{[%clk 0:01:59.1]} 13. Qxd3 {[%clk 0:02:16.6]} 13... Qa6 {[%clk 0:01:57]} 14.
Qxa6 {[%clk 0:02:13]} 14... bxa6 {[%clk 0:01:57.9]} 15. b4 {[%clk 0:02:13.2]}
15... Kd7 {[%clk 0:01:52]} 16. Be3 {[%clk 0:02:11.5]} 16... Nh6 {[%clk
0:01:48.5]} 17. Bxh6 {[%clk 0:02:11]} 17... gxh6 {[%clk 0:01:49.4]} 18. Rfc1
{[%clk 0:02:03.8]} 18... Rxc1+ {[%clk 0:01:46.2]} 19. Rxc1 {[%clk 0:02:03.4]}
19... Rc8 {[%clk 0:01:46.9]} 20. Rxc8 {[%clk 0:01:58.3]} 20... Kxc8 {[%clk
0:01:47.8]} 21. Ne1 {[%clk 0:01:46.7]} 21... a5 {[%clk 0:01:47.1]} 22. Nd3
{[%clk 0:01:20.3]} 22... axb4 {[%clk 0:01:45.3]} 23. axb4 {[%clk 0:01:20.9]}
23... Kc7 {[%clk 0:01:45.3]} 24. Kf1 {[%clk 0:01:16]} 24... Kc6 {[%clk
0:01:45.6]} 25. Ke2 {[%clk 0:01:16.2]} 25... Kb5 {[%clk 0:01:45.6]} 26. Nf4
{[%clk 0:01:13.4]} 26... Kxb4 {[%clk 0:01:43.5]} 27. Kd3 {[%clk 0:01:12.2]}
27... a5 {[%clk 0:01:43.6]} 28. g4 {[%clk 0:00:55.5]} 28... a4 {[%clk
0:01:43.7]} 29. Ne2 {[%clk 0:00:54.7]} 29... a3 {[%clk 0:01:43.3]} 30. Nc1
{[%clk 0:00:54.8]} 30... Bg5 {[%clk 0:01:40.8]} 31. Na2+ {[%clk 0:00:51.7]}
31... Kb3 {[%clk 0:01:41.4]} 32. Nc3 {[%clk 0:00:49.1]} 32... a2 {[%clk
0:01:42]} 33. Nxa2 {[%clk 0:00:49.1]} 33... Kxa2 {[%clk 0:01:42.2]} 0-1